[Event "French-ch U12-U14 2024"]
[Site "Agen"]
[Date "2024.04.19"]
[Round "7.13"]
[White "Pereira Garza, Cecilia"]
[Black "Dubin, Lisa"]
[Result "*"]
[ECO "D31"]
[WhiteElo "1725"]
[BlackElo "1711"]
[Annotator "NA RC COMBH"]
[PlyCount "71"]
[EventDate "2024.04.14"]
[EventType "swiss"]
[EventCountry "FRA"]
[SourceTitle "playchess.com"]
[Source "ChessBase"]
[SourceQuality "1"]
[TimeControl "5400+30"]

1. d4 {[%emt 0:00:01]} d5 {[%emt 0:00:05]} 2. c4 {[%emt 1:31:29]} e6 {[%emt 0:00:07]} 3. Nc3 {[%emt 0:00:15]} a6 {[%emt 0:00:06]} 4. cxd5 {[%emt 0:03:13]} exd5 {[%emt 0:00:07]} 5. a4 {[%emt 0:01:49]} Nf6 {[%emt 0:02:02]} 6. Nf3 {[%emt 0:01:29]} Bd6 {[%emt 0:03:49]} 7. Bg5 {[%emt 0:01:13]} Be6 {[%emt 1:27:44]} 8. e4 {[%emt 0:04:01]} dxe4 {[%emt 0:10:06]} 9. Nxe4 {[%emt 0:00:35]} Bb4+ {[%emt 0:02:03]} 10. Nc3 {[%emt 0:00:32]} O-O {[%emt 0:04:16]} 11. Bd3 {[%emt 0:02:25]} Bg4 {[%emt 0:06:49]} 12. O-O {[%emt 0:03:38]} Be7 {[%emt 0:12:48]} 13. Bc2 {[%emt 0:09:32]} Nc6 {[%emt 0:04:28]} 14. d5 {[%emt 1:08:33]} Bxf3 {[%emt 0:10:40]} 15. Qxf3 {[%emt 0:01:02]} Nd4 {[%emt 0:01:21]} 16. Qd3 {[%emt 0:00:56]} Nxc2 {[%emt 0:00:24]} 17. Qxc2 {[%emt 0:01:34]} Qd6 {[%emt 0:07:05]} 18. Rad1 {[%emt 0:05:36]} Ng4 {[%emt 0:04:31]} 19. f4 {[%emt 0:00:25]} Bxg5 {[%emt 0:11:35]} 20. Qe2 {[%emt 0:08:07]} Qb6+ {[%emt 0:17:20]} 21. Kh1 {[%emt 0:00:38]} Ne3 {[%emt 0:00:42]} 22. fxg5 {[%emt 0:02:03]} Rfe8 {[%emt 0:11:57]} 23. Rfe1 {[%emt 0:02:41]} g6 {[%emt 0:04:25]} 24. Rc1 {[%emt 0:05:48]} Qd4 {[%emt 0:03:26]} 25. Qf3 {[%emt 0:02:42]} Ng4 {[%emt 0:01:10]} 26. Rf1 {[%emt 0:01:43]} Re7 {[%emt 0:00:32]} 27. Rcd1 {[%emt 0:23:43]} Qb4 {[%emt 0:02:30]} 28. d6 {[%emt 0:00:46]} Rd7 {[%emt 0:00:48]} 29. Nd5 {[%emt 0:22:27]} Qc4 {[%emt 0:00:28]} 30. Qxg4 {[%emt 0:00:19]} Qxg4 {[%emt 0:00:37]} 31. Nf6+ {[%emt 0:00:21]} Kf8 {[%emt 0:01:00]} 32. Nxg4 {[%emt 0:00:11]} Rxd6 {[%emt 0:00:11]} 33. Rxd6 {[%emt 0:23:15]} cxd6 {[%emt 0:00:05]} 34. Nh6 {[%emt 0:00:10]} Rc8 {[%emt 0:00:37]} 35. Rxf7+ {[%emt 0:00:15]} Ke8 {[%emt 0:00:07]} 36. h3 {[%emt 0:00:14]} *

[Event "French-ch U12-U14 2024"]
[Site "Agen"]
[Date "2024.04.19"]
[Round "7.14"]
[White "Pauly, Juliette"]
[Black "Ourry, Elina"]
[Result "1-0"]
[ECO "D20"]
[WhiteElo "1617"]
[BlackElo "1678"]
[Annotator "NA RC COMBH"]
[PlyCount "41"]
[EventDate "2024.04.14"]
[EventType "swiss"]
[EventCountry "FRA"]
[SourceTitle "playchess.com"]
[Source "ChessBase"]
[SourceQuality "1"]
[TimeControl "5400+30"]

1. d4 {[%emt 0:00:02]} d5 {[%emt 0:00:07]} 2. c4 {[%emt 0:00:04]} dxc4 {[%emt 0:00:05]} 3. e4 {[%emt 0:00:04]} e5 {[%emt 0:00:21]} 4. Nf3 {[%emt 0:00:26]} exd4 {[%emt 0:00:59]} 5. Bxc4 {[%emt 0:00:29]} Nc6 {[%emt 0:02:02]} 6. Qb3 {[%emt 0:05:19]} Qe7 {[%emt 0:06:30]} 7. O-O {[%emt 0:01:38]} h6 {[%emt 0:20:21]} 8. Bf4 {[%emt 0:11:04]} b6 {[%emt 0:14:20]} 9. Bb5 {[%emt 0:10:57]} Bd7 {[%emt 0:02:07]} 10. Rc1 {[%emt 0:05:53]} Na5 {[%emt 0:05:34]} 11. Qd5 {[%emt 0:07:34]} c6 {[%emt 0:11:14]} 12. Bxc6 {[%emt 0:06:35]} Rc8 {[%emt 0:02:02]} 13. Bxd7+ {[%emt 0:01:26]} Qxd7 {[%emt 0:00:26]} 14. Rxc8+ {[%emt 0:01:18]} Qxc8 {[%emt 0:00:16]} 15. Qxd4 {[%emt 0:10:11]} Nf6 {[%emt 0:06:02]} 16. Nc3 {[%emt 0:06:47]} Be7 {[%emt 0:05:11]} 17. Rc1 {[%emt 0:09:39]} Qb7 {[%emt 0:08:06]} 18. Nd5 {[%emt 0:08:09]} Nxd5 {[%emt 0:02:11]} 19. exd5 {[%emt 0:00:11]} Bf6 {[%emt 0:01:47]} 20. Qe4+ {[%emt 0:01:34]} Qe7 {[%emt 0:00:39]} 21. Rc8+ {[%emt 0:00:18]} 1-0

[Event "French-ch U12-U14 2024"]
[Site "Agen"]
[Date "2024.04.19"]
[Round "7.15"]
[White "Boumrar, Emma"]
[Black "Nicot, Anna"]
[Result "0-1"]
[ECO "C01"]
[WhiteElo "1665"]
[BlackElo "1649"]
[Annotator "NA RC COMBH"]
[PlyCount "122"]
[EventDate "2024.04.14"]
[EventType "swiss"]
[EventCountry "FRA"]
[SourceTitle "playchess.com"]
[Source "ChessBase"]
[SourceQuality "1"]
[TimeControl "5400+30"]

1. e4 {[%emt 0:00:05]} e6 {[%emt 0:00:04]} 2. d4 {[%emt 0:00:06]} d5 {[%emt 0:00:02]} 3. Bd3 {[%emt 0:00:08]} Nf6 {[%emt 0:00:13]} 4. e5 {[%emt 0:00:07]} Nfd7 {[%emt 0:00:05]} 5. c3 {[%emt 0:00:09]} c5 {[%emt 0:00:11]} 6. Ne2 {[%emt 0:00:33]} Nc6 {[%emt 0:00:24]} 7. Be3 {[%emt 0:01:37]} Qb6 {[%emt 0:01:24]} 8. Qb3 {[%emt 0:12:00]} cxd4 {[%emt 0:16:13]} 9. Qxb6 {[%emt 0:04:25]} axb6 {[%emt 0:02:36]} 10. cxd4 {[%emt 0:08:56]} Nb4 {[%emt 0:01:40]} 11. Nc1 {[%emt 0:03:49]} Nxd3+ {[%emt 0:00:20]} 12. Nxd3 {[%emt 0:00:14]} f6 {[%emt 0:01:30]} 13. f4 {[%emt 0:02:30]} Be7 {[%emt 0:00:54]} 14. Nc3 {[%emt 0:03:07]} Kf7 {[%emt 0:01:11]} 15. O-O {[%emt 0:06:06]} f5 {[%emt 0:01:57]} 16. a3 {[%emt 0:05:53]} Nb8 {[%emt 0:00:33]} 17. Rac1 {[%emt 0:04:50]} Nc6 {[%emt 0:00:14]} 18. Ra1 {[%emt 0:00:54]} Bd7 {[%emt 0:04:38]} 19. b4 {[%emt 0:10:52]} Rhc8 {[%emt 0:06:10]} 20. Ne2 {[%emt 0:04:08]} Na7 {[%emt 0:04:10]} 21. Rfc1 {[%emt 0:02:50]} Rxc1+ {[%emt 0:02:09]} 22. Nexc1 {[%emt 0:02:41]} Nb5 {[%emt 0:54:52]} 23. Nb3 {[%emt 0:08:11]} Rxa3 {[%emt 0:00:00]} 24. Rxa3 {[%emt 0:03:03]} Nxa3 {[%emt 0:00:00]} 25. Bd2 {[%emt 0:00:55]} Nc2 {[%emt 0:00:00]} 26. Bc3 {[%emt 0:00:37]} Bb5 {[%emt 0:00:00]} 27. Nbc1 {[%emt 0:00:10]} g5 {[%emt 0:00:00]} 28. g3 {[%emt 0:00:43]} g4 {[%emt 0:00:00]} 29. Kf2 {[%emt 0:01:08]} Ke8 {[%emt 0:00:00]} 30. Kg1 {[%emt 0:01:10]} Kd7 {[%emt 0:00:00]} 31. Kg2 {[%emt 0:00:31]} h5 {[%emt 0:00:00]} 32. Kf2 {[%emt 0:01:00]} Kc6 {[%emt 0:00:00]} 33. Ke2 {[%emt 0:02:23]} Nxb4 {[%emt 0:00:00]} 34. Kd2 {[%emt 0:00:55]} Nxd3 {[%emt 0:00:00]} 35. Nxd3 {[%emt 0:00:03]} Bxd3 {[%emt 0:00:00]} 36. Kxd3 {[%emt 0:00:07]} Kb5 {[%emt 0:00:00]} 37. Bd2 {[%emt 0:00:25]} Ka4 {[%emt 0:00:00]} 38. Kc2 {[%emt 0:00:27]} b5 {[%emt 0:00:00]} 39. Kb2 {[%emt 0:00:11]} Ba3+ {[%emt 0:00:00]} 40. Kb1 {[%emt 0:00:36]} Kb3 {[%emt 0:00:00]} 41. Be1 {[%emt 0:00:21]} Kc4 {[%emt 0:00:00]} 42. Bf2 {[%emt 0:00:22]} Bb4 {[%emt 0:00:00]} 43. Kc2 {[%emt 0:00:56]} Bc3 {[%emt 0:00:00]} 44. Kb1 {[%emt 0:00:25]} Bxd4 {[%emt 0:00:00]} 45. Be1 {[%emt 0:00:28]} Bg1 {[%emt 0:00:00]} 46. Kc2 {[%emt 0:00:28]} Bxh2 {[%emt 0:00:00]} 47. Kb2 {[%emt 0:00:08]} d4 {[%emt 0:00:00]} 48. Kc2 {[%emt 0:00:22]} d3+ {[%emt 0:00:00]} 49. Kc1 {[%emt 0:00:12]} b4 {[%emt 0:00:00]} 50. Kb2 {[%emt 0:00:07]} Bg1 {[%emt 0:00:00]} 51. Kc1 {[%emt 0:00:09]} Be3+ {[%emt 0:00:00]} 52. Kb2 {[%emt 0:00:09]} d2 {[%emt 0:00:00]} 53. Bxd2 {[%emt 0:00:23]} Bxd2 {[%emt 0:00:00]} 54. Kb1 {[%emt 0:00:05]} Be1 {[%emt 0:00:00]} 55. Kc2 {[%emt 0:00:08]} Bxg3 {[%emt 0:00:00]} 56. Kb2 {[%emt 0:00:10]} h4 {[%emt 0:00:00]} 57. Kc2 {[%emt 0:00:07]} h3 {[%emt 0:00:00]} 58. Kb1 {[%emt 0:00:04]} h2 {[%emt 0:00:00]} 59. Kc2 {[%emt 0:00:27]} h1=Q {[%emt 0:00:00]} 60. Kb2 {[%emt 0:00:10]} Qg2+ {[%emt 0:00:00]} 61. Ka1 {[%emt 0:00:12]} Kc3 {[%emt 0:00:00]} 0-1

[Event "French-ch U12-U14 2024"]
[Site "Agen"]
[Date "2024.04.19"]
[Round "7.16"]
[White "Laignel, Quentin"]
[Black "Rodriguez, Augustin"]
[Result "1/2-1/2"]
[ECO "D37"]
[WhiteElo "2023"]
[BlackElo "2001"]
[Annotator "TA"]
[PlyCount "95"]
[EventDate "2024.04.14"]
[EventType "swiss"]
[EventCountry "FRA"]
[SourceTitle "playchess.com"]
[Source "ChessBase"]
[SourceQuality "1"]
[TimeControl "5400+30"]

{[%evp 9,95,30,25,24,21,29,28,31,25,22,28,26,31,31,36,26,30,0,35,18,30,22,66,79,75,22,34,26,29,21,33,33,39,54,35,52,33,9,16,16,85,0,0,0,8,20,12,16,15,0,0,0,0,0,30,33,31,30,68,29,47,43,152,154,150,97,89,80,77,78,73,71,98,103,79,41,67,-91,111,0,85,62,64,50,250,259,260,244]} 1. d4 {[%emt 0:00:07]} d5 {[%emt 0:00:08]} 2. Nf3 {[%emt 0:00:30]} Nf6 {[%emt 0:00:09]} 3. c4 {[%emt 0:02:56]} e6 {[%emt 0:00:15]} 4. Nc3 {[%emt 0:01:16]} a6 {[%emt 0:00:21]} 5. cxd5 {[%emt 0:02:03]} exd5 {[%emt 0:00:10]} 6. Bg5 {[%emt 0:03:25]} Be6 {[%emt 0:02:09]} 7. e3 {[%emt 0:04:29]} Nbd7 {[%emt 0:07:30]} 8. Bd3 {[%emt 0:03:23] White has an edge.} Bd6 {[%emt 0:02:31]} 9. O-O {[%emt 0:03:18]} c6 {[%emt 0:03:20]} 10. h3 {[%emt 0:03:39]} h6 {[%emt 0:05:54]} 11. Bf4 {[%emt 0:04:46]} Qc7 {[%emt 0:01:20]} 12. Qd2 {[%emt 0:01:46]} O-O {[%emt 0:08:02]} 13. Rac1 {[%emt 0:10:02]} Rac8 {[%emt 0:15:02]} 14. a4 {[%emt 0:10:25][%cal Ba2a4,Ba4a5][%mdl 32]} Rfd8 {[%emt 0:08:21]} 15. b4 {[%emt 0:09:05]} Nb6 {[%emt 0:15:17]} 16. a5 {[%emt 0:09:37]} Nc4 {[%emt 0:02:01]} 17. Bxd6 {[%emt 0:00:55]} (17. Bxc4 $1 $16 {Black must now prevent Bd3.} Bxf4 18. Bd3 (18. Bxa6 Ne4 $14)) 17... Nxd6 {[%emt 0:04:26]} 18. Qc2 {[%emt 0:04:47]} Qe7 {[%emt 0:04:03]} 19. Ne5 {[%emt 0:01:09]} Nde4 {[%emt 0:03:57]} 20. Bxe4 {[%emt 0:05:34]} Nxe4 {[%emt 0:00:57]} 21. Nxe4 {[%emt 0:00:45]} dxe4 {[%emt 0:00:01]} 22. Qxe4 {[%emt 0:01:22]} Qxb4 {[%emt 0:00:35]} 23. Rb1 {[%emt 0:00:47]} (23. Rc5 {is interesting.} Rd5 24. Rb1 Qa4 25. Rxd5 Bxd5 26. Qg4) 23... Qe7 {[%emt 0:05:24]} 24. Nd3 {[%emt 0:02:56]} Qf6 {[%emt 0:04:29]} (24... Qg5 $1 $11 25. Qf4 (25. Rxb7 $2 Bf5 $19) 25... Bf5 26. Qxg5 hxg5) 25. Qe5 {[%emt 0:02:10]} (25. Rxb7 $2 Bf5 26. Qf3 Bxd3 $19) (25. Rfd1 $16) 25... Qxe5 $11 {[%emt 0:01:17]} 26. Nxe5 {[%emt 0:00:09][%cal Bd3e5,Be5f3,Bf3d2,Bd2b1,Bb1c3,Bc3a4,Ba4c5][%mdl 32]} Rc7 {[%emt 0:00:14]} 27. Rfc1 {[%emt 0:01:58]} f6 {[%emt 0:02:07]} 28. Nf3 {[%emt 0:00:18]} Rd5 {[%emt 0:01:28]} 29. Ra1 {[%emt 0:00:36]} Rb5 {[%emt 0:00:36]} 30. Nd2 {[%emt 0:01:14]} f5 {[%emt 0:02:41] Dodges Ne4} 31. Nb1 {[%emt 0:00:29]} Rb4 {[%emt 0:00:44][%cal Of5f4]} 32. Nc3 {[%emt 0:01:25]} Kf7 {[%emt 0:00:30]} 33. Na4 {[%emt 0:00:31]} Ke7 {[%emt 0:00:30]} 34. Nc5 {[%emt 0:00:38]} Bc4 {[%emt 0:00:23]} 35. Rab1 {[%emt 0:01:26]} (35. f3 {feels hotter.} Kd6 36. Rab1 Rb5 37. g4) 35... Rxb1 {[%emt 0:00:09]} (35... Rb5 $14) 36. Rxb1 $14 {[%emt 0:00:11][%mdl 4096] Endgame. KRB-KRN} Bb5 {[%emt 0:00:07]} 37. Kh2 {[%emt 0:00:31] White is more active.} (37. g4 $142 g6 38. gxf5 gxf5 39. Kg2) 37... Kd6 $16 {[%emt 0:00:41]} 38. Kg3 {[%emt 0:00:53]} g5 {[%emt 0:00:31]} 39. h4 {[%emt 0:01:26]} Kd5 {[%emt 0:01:08][%cal Of5f4]} 40. Kf3 {[%emt 0:02:00]} Re7 {[%emt 0:00:27]} 41. hxg5 {[%emt 0:00:39]} hxg5 {[%emt 0:00:01]} 42. Rh1 {[%emt 0:01:57]} Kc4 {[%emt 0:00:41]} 43. Rh5 $2 {[%emt 0:01:59] [#]} (43. g4 $14 {keeps the upper hand.} f4 44. Rc1+ (44. exf4 Kxd4 45. Nb3+ Kc3 $15) 44... Kb4 45. exf4 Be2+ 46. Kg3 gxf4+ 47. Kxf4) 43... Rg7 $2 {[%emt 0:00:46] [#]} (43... Kb4 $1 $17 {[%cal Rb4a5] keeps the pressure on.} 44. g4 (44. Rxg5 Kxa5 45. Rxf5 Kb4 $17) 44... fxg4+ (44... Kxa5 45. gxf5 Kb4 46. e4 $18) 45. Kxg4 Be2+ (45... Kxa5 46. Kxg5 Rf7 47. f4 $14) 46. f3 Rxe3 (46... Kxa5 47. Rxg5 Kb4 48. Kf5 $19) 47. Kxg5 Kxa5 (47... Rxf3 48. Nxb7 Rg3+ 49. Kf4 $15) (47... Bxf3 48. Rh7 $15) 48. Nxb7+ Kb6) 44. Ne6 {[%emt 0:00:32]} (44. g4 $1 $16 {[%cal Rg4f5]} Rf7 45. Rxg5 fxg4+ 46. Kxg4) 44... Rg6 {[%emt 0:00:27]} (44... Re7 $1 $11 45. Nxg5 Kb4) 45. Nxg5 {[%emt 0:02:56] Strongly threatening Kf4.} Kb4 {[%emt 0:01:10]} 46. Kf4 Bd3 $2 {[%emt 0:00:30]} (46... Rg8 $14) 47. Rh7 $18 {[%emt 0:00:00]} Kxa5 {[%emt 0:00:30]} 48. Rxb7 {[%emt 0:00:00] Weighted Error Value: White=0.20 (precise) /Black=0.30.  Loses game:     	---       	Black=1      Mistake:       	White=5     	Black=4      Inaccurate:     	White=3     	Black=5      OK:         	White=14    	Black=18     Best:        	White=4     	Black=2} 1/2-1/2

[Event "French-ch U12-U14 2024"]
[Site "Agen"]
[Date "2024.04.19"]
[Round "7.17"]
[White "Breuil, Virgile"]
[Black "Bonelli Maestracci, Pierre Joseph"]
[Result "0-1"]
[ECO "C45"]
[WhiteElo "2307"]
[BlackElo "2044"]
[Annotator "TA"]
[PlyCount "188"]
[EventDate "2024.04.14"]
[EventType "swiss"]
[EventCountry "FRA"]
[SourceTitle "playchess.com"]
[Source "ChessBase"]
[SourceQuality "1"]
[TimeControl "5400+30"]

{[%evp 75,188,-263,-261,-249,-182,-237,-265,-264,-254,-258,-275,-261,-268,-273,-273,-267,-277,-289,-291,-385,-310,-388,-364,-372,-280,-340,-314,-367,-383,-413,-402,-408,-379,-446,-370,-427,-318,-451,0,-429,-440,-381,-356,-295,-166,-269,-213,-446,-439,-377,-491,-499,-499,-495,-499,-499,-499,-499,-492,-491,-491,-491,-491,-491,-484,-491,-219,-219,-219,-219,-219,-219,-219,-244,-244,-244,-244,-462,-462,-447,-244,-445,-244,-244,-244,-244,-244,-244,-244,-244,0,-244,-71,-71,-71,-71,-71,-4944,-4914,-4602,-4543,-29977,-29977,-29980,-29981,-29981,-29982,-29982,-29983,-29982,-29983,-29987,-29988,-29994,-29992]} 1. e4 {[%emt 0:00:04]} e5 {[%emt 0:03:39]} 2. Nf3 {[%emt 0:00:42]} Nc6 {[%emt 0:00:04]} 3. d4 {[%emt 0:00:54]} exd4 {[%emt 0:00:11]} 4. Nxd4 {[%emt 0:00:21]} Bc5 {[%emt 0:00:04]} 5. Be3 {[%emt 0:00:35]} Qf6 {[%emt 0:00:25]} 6. c3 {[%emt 0:00:39]} Nge7 {[%emt 0:00:04]} 7. Bc4 {[%emt 0:00:42]} d5 {[%emt 0:00:14] 7...b6 is setting a new trend. C45: Scotch Game.} 8. exd5 {[%emt 0:07:47]} Ne5 {[%emt 0:00:11]} 9. Nd2 {[%emt 0:10:39]} Qg6 $146 {[%emt 0:07:56]} ({Predecessor:} 9... O-O 10. Ne4 Qg6 11. Bd3 Qxg2 12. Kd2 Bxd4 13. Bxd4 Bg4 14. Rg1 Nf3+ 15. Kc2 Nxd4+ 16. cxd4 Bxd1+ 17. Raxd1 {0-1 Ilichev,I (1114)-Gelemerov,Y (2026) Sofia MGU op 173rd 2016 (5)}) 10. N2f3 {[%emt 0:11:13]} Bxd4 {[%emt 0:09:53]} 11. Bb5+ {[%emt 0:19:00]} c6 {[%emt 0:09:59]} 12. dxc6 {[%emt 0:02:30]} bxc6 {[%emt 0:02:09]} 13. Qxd4 {[%emt 0:00:45]} Nxf3+ {[%emt 0:02:30]} 14. gxf3 {[%emt 0:00:06]} cxb5 {[%emt 0:05:48]} 15. O-O-O {[%emt 0:01:55]} O-O {[%emt 0:04:06]} 16. Rhg1 {[%emt 0:03:14]} Nf5 {[%emt 0:00:08]} 17. Qe4 {[%emt 0:07:16]} Qe6 {[%emt 0:00:11]} 18. Bc5 {[%emt 0:00:24]} Qh6+ {[%emt 0:10:20]} 19. f4 {[%emt 0:03:56]} Be6 {[%emt 0:00:14]} 20. Bxf8 {[%emt 0:01:56]} Rxf8 {[%emt 0:00:05]} 21. Rd2 {[%emt 0:01:56]} Qf6 {[%emt 0:08:30]} 22. a3 {[%emt 0:01:36]} h6 {[%emt 0:01:53]} 23. Rgd1 {[%emt 0:02:42]} Kh7 {[%emt 0:05:31]} 24. Re1 {[%emt 0:02:21]} a5 {[%emt 0:05:36]} 25. Qe5 {[%emt 0:01:43]} Qh4 {[%emt 0:02:45]} 26. Qxb5 {[%emt 0:02:10]} Qxf4 {[%emt 0:00:13]} 27. Qe5 {[%emt 0:01:30]} Qc4 {[%emt 0:04:27]} 28. Qe4 {[%emt 0:03:41]} Qa2 {[%emt 0:01:36]} 29. Qb1 {[%emt 0:00:41]} Qb3 {[%emt 0:02:32]} 30. Qc2 {[%emt 0:00:17]} Qa2 {[%emt 0:01:26]} 31. Qb1 {[%emt 0:00:27]} Qb3 {[%emt 0:01:07]} 32. Qc2 {[%emt 0:00:05]} Qa2 {[%emt 0:00:19]} 33. Re5 {[%emt 0:00:07]} g6 {[%emt 0:02:07]} 34. Qb1 {[%emt 0:01:18]} Qc4 {[%emt 0:02:35]} 35. Qe4 {[%emt 0:02:02]} Qf1+ {[%emt 0:00:45]} 36. Qe1 {[%emt 0:00:55]} Qc4 {[%emt 0:00:11]} 37. Qe2 {[%emt 0:00:56]} Qa2 {[%emt 0:00:26]} 38. Qe4 {[%emt 0:00:38]} Re8 {[%emt 0:00:25]} 39. Qb1 {[%emt 0:06:32]} Qxb1+ {[%emt 0:00:53]} 40. Kxb1 {[%emt 0:00:03]} Ba2+ {[%emt 0:00:04]} 41. Kxa2 {[%emt 0:00:02]} Rxe5 {[%emt 0:00:07]} 42. Kb3 {[%emt 0:00:21]} Re4 {[%emt 0:03:21]} 43. c4 {[%emt 0:03:34]} Kg7 {[%emt 0:01:56]} 44. Ka4 {[%emt 0:00:25]} Rxc4+ {[%emt 0:00:39]} 45. Kxa5 {[%emt 0:00:09]} Kf6 {[%emt 0:01:37]} 46. b4 {[%emt 0:00:35]} Ke6 {[%emt 0:00:13]} 47. Kb5 {[%emt 0:01:11]} Rc8 {[%emt 0:00:11]} 48. Ka4 {[%emt 0:00:47]} Nd6 {[%emt 0:00:27]} 49. Kb3 {[%emt 0:00:17]} Kd7 {[%emt 0:00:21]} 50. a4 {[%emt 0:00:15]} Rc1 {[%emt 0:00:12]} 51. b5 {[%emt 0:00:52]} Kc7 {[%emt 0:00:13]} 52. Kb2 {[%emt 0:01:01]} Rc5 {[%emt 0:01:52]} 53. Kb3 {[%emt 0:00:21]} h5 {[%emt 0:01:23]} 54. Kb4 {[%emt 0:00:32]} Rc1 {[%emt 0:00:15]} 55. Re2 {[%emt 0:00:29]} Kd7 {[%emt 0:01:07]} 56. Rb2 {[%emt 0:00:40]} (56. Ra2 $142) 56... Kc7 {[%emt 0:00:36]} 57. Re2 $1 {[%emt 0:00:14]} Rc4+ {[%emt 0:00:02]} 58. Kb3 {[%emt 0:00:09]} Rh4 {[%emt 0:01:03]} 59. Rc2+ {[%emt 0:00:14]} Kb7 {[%emt 0:00:21]} (59... Kb8 $142 60. Rc6 Nb7) 60. Rd2 {[%emt 0:00:08]} (60. Rc6 $142 Rd4 61. a5) 60... Ne4 {[%emt 0:00:09]} 61. Rd7+ $2 {[%emt 0:00:33]} (61. Rd4) 61... Kb6 $19 {[%emt 0:00:10]} 62. Rxf7 {[%emt 0:00:06]} Nc5+ {[%emt 0:00:06]} ({And not} 62... Rxh2 63. Kb4 Nxf2 64. a5#) 63. Kc2 {[%emt 0:00:30]} Nxa4 {[%emt 0:00:42]} 64. Rf6+ {[%emt 0:00:04]} Kxb5 {[%emt 0:00:07]} 65. Rxg6 {[%emt 0:00:05]} Rxh2 {[%emt 0:00:12]} 66. Kd3 {[%emt 0:00:11]} Rxf2 {[%emt 0:01:22]} 67. Ke3 {[%emt 0:00:34]} Rf5 {[%emt 0:00:37]} 68. Ke4 {[%emt 0:01:02]} Rc5 {[%emt 0:00:05]} 69. Kf4 {[%emt 0:00:19]} Nc3 {[%emt 0:00:11]} 70. Kg3 {[%emt 0:00:52]} Kc4 {[%emt 0:01:15]} (70... Rf5 $142 71. Re6 Nd5) 71. Kh4 $19 {[%emt 0:00:30]} Nd5 $1 {[%emt 0:00:30]} 72. Rg1 {[%emt 0:01:56]} Nf6 $1 {[%emt 0:00:40]} 73. Rf1 {[%emt 0:01:00]} Rc6 $1 {[%emt 0:00:11]} 74. Rd1 {[%emt 0:00:17]} Re6 {[%emt 0:00:25]} 75. Kg5 {[%emt 0:00:26]} Kc5 {[%emt 0:00:31]} 76. Kf5 $2 {[%emt 0:00:21]} (76. Kg6 {was necessary.}) 76... Rd6 $19 {[%emt 0:00:11]} 77. Rc1+ {[%emt 0:00:08]} Kb6 {[%emt 0:00:15]} (77... Kd5 $142 78. Rd1+ Kc6 79. Rc1+ Kd7) 78. Ra1 $2 {[%emt 0:00:55]} (78. Kg5 {was called for.}) 78... Kc7 {[%emt 0:00:28]} (78... Ne8 $142 79. Ke4 Rf6) 79. Ra7+ {[%emt 0:00:29]} Kd8 {[%emt 0:00:07]} 80. Kg5 {[%emt 0:00:14]} Ke8 {[%emt 0:00:13]} 81. Rb7 {[%emt 0:00:26]} Kf8 {[%emt 0:02:14]} 82. Ra7 {[%emt 0:00:23]} Ke8 {[%emt 0:00:57]} 83. Rb7 $1 {[%emt 0:00:09]} Rd7 $2 {[%emt 0:00:11]} (83... Rc6 $19 {is more deadly. Hoping for ...Re6.} 84. Ra7 Kf8) 84. Rb6 $17 {[%emt 0:00:20]} Rf7 {[%emt 0:00:05]} 85. Kg6 {[%emt 0:00:44]} Rf8 {[%emt 0:00:52]} 86. Kg7 $2 {[%emt 0:00:50][%mdl 8192]} (86. Rb8+ $17 Ke7 87. Rb7+ Nd7 88. Kxh5) 86... Ke7 $1 $19 {[%emt 0:00:31]} 87. Rb7+ {[%emt 0:00:32]} Nd7 {[%emt 0:00:05]} 88. Rb5 {[%emt 0:00:21] [#]} h4 $1 {[%emt 0:00:06]} 89. Rb4 {[%emt 0:01:18]} h3 {[%emt 0:00:38]} 90. Re4+ {[%emt 0:00:23]} Kd6 {[%emt 0:00:11]} 91. Rd4+ {[%emt 0:00:50]} Ke6 {[%emt 0:00:09]} 92. Re4+ {[%emt 0:00:20] [#]} Kd5 $1 {[%emt 0:00:29]} 93. Re3 {[%emt 0:00:29]} h2 {[%emt 0:00:09]} 94. Re7 {[%emt 0:00:43]} Rf1 {[%emt 0:00:17]} 0-1